Cogmind - Beta 14 @@@ ROGUE MODE // 2025.01.07 @ 13:05:40 Player: luckinvolved Result: Destroyed by as-99396 with Assembled Rifle Performance ------------- Evolutions (0) 0 Regions Visited (2) 400 Robots Destroyed (35) 175 Value Destroyed (643) 643 Prototype IDs (4) 80 Alien Tech Used (0) 0 Bonus (0) 0 TOTAL SCORE: 1298 Bonus ------- None Cogmind --------- Core Integrity 0/250 Matter 285/300 Energy 158/160 System Corruption 0% Temperature Cool (36) Movement Rolling (135) Ox3 Location -10/Mines Parts ------- > --- POWER (1) -------- Light Nuclear Core > --- PROPULSION (2) --- Wheel Compact Wheel > --- UTILITY (2) ------ Heat Sink Huge Storage Unit > --- WEAPON (2) ------- Particle Gun Mining Claw > --- INVENTORY (25) --- Light Ion Engine Light Ion Engine Light Treads Light Treads Light Treads Wheel Wheel Heat Sink Heat Sink Large Storage Unit Compact Matter Pod (150) Weight Redist. System Visual Processing Unit Improved Terrain Scanner Improved Terrain Scanner Seismic Detector Targeting Computer Power Shielding Hacking Suite Peak State ------------ > --- POWER ------------ Light Nuclear Core > --- PROPULSION ------- Wheel Compact Wheel > --- UTILITY ---------- Heat Sink Huge Storage Unit > --- WEAPON ----------- Particle Gun Mining Claw > --- INVENTORY -------- Light Ion Engine Light Ion Engine Light Treads Light Treads Light Treads Wheel Wheel Heat Sink Heat Sink Large Storage Unit Compact Matter Pod Weight Redist. System Visual Processing Unit Improved Terrain Scanner Improved Terrain Scanner Seismic Detector Targeting Computer Power Shielding Hacking Suite [Rating: 12] Favorites ----------- Power Ion Engine Engine Ion Engine Power Core Light Nuclear Core Propulsion Wheel Wheel Wheel Utility Huge Storage Unit Device Heat Sink Storage Huge Storage Unit Processor Targeting Computer Weapon Beam Cannon Energy Gun Medium Laser Energy Cannon Beam Cannon Ballistic Gun Assault Rifle Slashing Weapon Mining Claw Build | -11 -10 -10 ------- Run | Yrd Mat Min Slots Evolved . | . . . Power . | . . . Propulsion . | . . . Utility . | . . . Weapon . | . . . Parts Attached 22 | 7 10 5 Power 4 | 1 1 2 Engine 3 | 1 1 1 Core 1 | . . 1 Reactor . | . . . Propulsion 6 | 2 2 2 Treads . | . . . Leg . | . . . Wheel 6 | 2 2 2 Hover . | . . . Flight . | . . . Utility 6 | 2 4 . Device 2 | 1 1 . Storage 3 | 1 2 . Processor 1 | . 1 . Hackware . | . . . Protection . | . . . Artifact . | . . . Weapon 6 | 2 3 1 Energy Gun 2 | . 2 . Energy Cannon 1 | . 1 . Ballistic Gun 2 | 2 . . Ballistic Cannon . | . . . Launcher . | . . . Special Weapon . | . . . Impact Weapon . | . . . Slashing Weapon 1 | . . 1 Piercing Weapon . | . . . Special Melee Weapon . | . . . Unidentified Prototypes . | . . . Parts Lost 8 | . 3 5 Power 3 | . 1 2 Propulsion 3 | . 1 2 Utility . | . . . Weapon 2 | . 1 1 Highest Loss Streak 2 | . 2 2 To Critical Strikes . | . . . Average Slot Usage (%) 97 | . 99 88 Engine 13 | . 13 12 Wheel 27 | . 27 28 Device 7 | . 5 14 Storage 14 | . 14 14 Processor 6 | . 8 . Energy Gun 13 | . 13 14 Energy Cannon 11 | . 13 3 Peak Build Rating 12 | 8 11 12 Average Rating 8 | 5 8 10 On Entrance 6 | . 8 11 Naked Turns . | . . . Heaviest Build 90 | 14 90 90 Greatest Support 26 | 26 26 26 Greatest Overweight (x) 8 | . 8 4 Average Overweight (x) 2 | . 2 3 Largest Inventory Capacity 25 | 8 25 25 Average Capacity 20 | 7 20 25 Most Carried 23 | 8 22 23 Average Carried 16 | 4 15 20 Final Capacity 25 | 8 25 25 Final Carried 22 | 8 22 19 Class Distribution -------------------- 90% | Mutant 9% | Scavenger-Mutant Dominant Class ---------------- Mutant | -10/Materials Scavenger-Mutant | -10/Mines Resources | -11 -10 -10 ----------- Run | Yrd Mat Min Matter Collected 434 | 287 122 25 Remotely . | . . . Salvage Created 1208 | 182 959 67 Parts 80 | 11 65 4 Haulers Intercepted 2 | . 2 . Recyclers Shooed 1 | . 1 . Parts Field Recycled . | . . . Retrieved Matter . | . . . Parts Self-Destructed . | . . . Prevented . | . . . Kills | -11 -10 -10 ------- Run | Yrd Mat Min Combat Hostiles Destroyed 21 | . 16 5 Guns 8 | . 4 4 Cannons 13 | . 12 1 Classes Destroyed 10 | 3 6 1 Worker 3 | 1 2 . Builder 1 | . 1 . Tunneler 3 | 3 . . Hauler 2 | . 2 . Recycler 3 | 1 2 . Operator 1 | . 1 . Watcher 3 | . 3 . Swarmer 6 | . 3 3 Grunt 13 | . 13 . Assembled 2 | . . 2 Best Kill Streak 5 | 4 5 3 Combat Bots Only 3 | . 3 3 Max Kills in Single Turn 2 | 1 2 1 Gunslinging . | . . . Exploded . | . . . Melee . | . . . Uniques/NPCs Destroyed . | . . . Combat | -11 -10 -10 -------- Run | Yrd Mat Min Hostile Shots Fired 101 | . 58 43 Missed 27 | . 12 15 Damage Taken 849 | . 517 332 Core 262 | . 153 109 Absorbed by Shields . | . . . Core Remaining (%) 100 | 100 . . Volleys Fired 85 | 11 56 18 Largest 2 | 2 2 2 Hottest 125 | 40 125 125 Shots Fired 153 | 22 108 23 Gun 92 | 22 52 18 Cannon 61 | . 56 5 Launcher . | . . . Special . | . . . Kinetic 22 | 22 . . Thermal 131 | . 108 23 Explosive . | . . . Electromagnetic . | . . . Robot Hit Streak 8 | 8 8 7 Robot Miss Streak 5 | 3 4 5 Penetration Max . | . . . Secondary Targets . | . . . Shots Hit Robots 92 | 13 67 12 Core Hits 50 | 6 36 8 Critical Kills . | . . . Critical Parts Destroyed . | . . . Critical Strikes 2 | . 2 . Burn 2 | . 2 . Melee Attacks . | . . . Impact . | . . . Slashing . | . . . Piercing . | . . . Sneak Attacks . | . . . Combat Hostiles . | . . . Follow-up Attacks . | . . . Damage Inflicted 1442 | 143 1070 229 Guns 690 | 143 371 176 Cannons 752 | . 699 53 Explosions . | . . . Melee . | . . . Ramming . | . . . Kinetic 143 | 143 . . Thermal 1299 | . 1070 229 Explosive . | . . . Electromagnetic . | . . . Impact . | . . . Slashing . | . . . Piercing . | . . . Highest Corruption . | . . . Average Corruption . | . . . Corruption Purged . | . . . Corruption Blocked . | . . . Overload Shots . | . . . Overflow Damage . | . . . Projectiles . | . . . Explosions . | . . . Melee . | . . . Knockbacks . | . . . Impact . | . . . Kinetic . | . . . Secondary . | . . . Self-Inflicted Damage . | . . . Shots . | . . . Rammed . | . . . Targets Rammed . | . . . Kicked . | . . . Crushed . | . . . Highest Temperature 384 | . 384 135 Average Temperature 94 | . 101 48 Received Heat Transfer 279 | . 279 . Effects 8 | . 8 . Interference 8 | . 8 . Siege Activations . | . . . Robots Corrupted . | . . . Combat Hostiles . | . . . Parts Fried . | . . . Impact Corruptions . | . . . Robots Melted . | . . . Combat Hostiles . | . . . Parts Melted 3 | . 3 . Heat Transferred 3256 | . 2738 518 Parts Sabotaged . | . . . Parts Stolen . | . . . Parts Stripped . | . . . Power Chain Reactions . | . . . Alert | -11 -10 -10 ------- Run | Yrd Mat Min Peak Influence 269 | 25 269 138 Initial 88 | . 16 88 Average 138 | 9 155 117 Maximum Alert Level 1 | . 1 . Low Security (%) 69 | 100 59 100 Level 1 30 | . 40 . Level 2 . | . . . Level 3 . | . . . Level 4 . | . . . Level 5 . | . . . High Security . | . . . Max Security . | . . . Squads Dispatched 5 | . 5 . Investigation 4 | . 4 . Extermination . | . . . Reinforcement 1 | . 1 . Assault . | . . . Garrison . | . . . Intercept . | . . . Searches Triggered . | . . . Construction Impeded . | . . . Haulers Reinforced . | . . . Active Scanning Responses . | . . . Cargo Convoy Interrupts . | . . . Stealth | -11 -10 -10 --------- Run | Yrd Mat Min Distress Signals 1 | . 1 . Communications Jammed . | . . . Distress Signals . | . . . Times Spotted 31 | . 21 10 Peak Tracking Total 3 | . 3 3 Tactical Retreats 2 | . 1 1 Traps | -11 -10 -10 ------- Run | Yrd Mat Min Traps Triggered 1 | . 1 . Indirectly . | . . . Trap Hack Attempts . | . . . Triggered . | . . . Disarmed . | . . . Reprogrammed . | . . . Reused . | . . . Traps Extracted . | . . . Installed . | . . . Triggered . | . . . Machines | -11 -10 -10 ---------- Run | Yrd Mat Min Machines Disabled . | . . . Max in Single Turn . | . . . Machines Repaired . | . . . Machines Dismantled . | . . . Machines Sabotaged . | . . . Overloaded Fab Kills . | . . . Hacking | -11 -10 -10 --------- Run | Yrd Mat Min Machines Accessed 7 | . 7 . Terminals 5 | . 5 . Fabricators . | . . . Repair Stations . | . . . Recycling Units 2 | . 2 . Scanalyzers . | . . . Garrison Access . | . . . Total Hacks 19 | . 19 . Successful 9 | . 9 . Failed 10 | . 10 . Catastrophic 1 | . 1 . Database Lockouts . | . . . Manual 16 | . 16 . Terminals 16 | . 16 . Fabricators . | . . . Repair Stations . | . . . Recycling Units 3 | . 3 . Scanalyzers . | . . . Garrison Access . | . . . Terminal Hacks 4 | . 4 . Robot Analysis 1 | . 1 . Prototype ID Bank 2 | . 2 . Maintenance Status 1 | . 1 . Fabricator Hacks . | . . . Repair Station Hacks . | . . . Recycling Unit Hacks . | . . . Scanalyzer . | . . . Garrison Access Hacks . | . . . Unauthorized Hacks 5 | . 5 . Terminals 3 | . 3 . Assimilate 1 | . 1 . Botnet 2 | . 2 . Fabricators . | . . . Repair Stations . | . . . Recycling Units 2 | . 2 . Tunnel 2 | . 2 . Scanalyzers . | . . . Garrison Access . | . . . Data Cores Recovered . | . . . Used . | . . . Hacking Detections 5 | . 5 . Full Trace Events 4 | . 4 . Feedback Events . | . . . Feedback Blocked . | . . . Robot Schematics Acquired . | . . . Robots Built . | . . . Authchips . | . . . Time . | . . . Total Robot Build Rating . | . . . Part Schematics Acquired . | . . . Parts Built . | . . . Authchips . | . . . Time . | . . . Total Part Build Rating . | . . . Parts Repaired . | . . . Time . | . . . Parts Recycled . | . . . Recycled Matter . | . . . Retrieved Matter . | . . . Retrieved Components . | . . . Parts Scanalyzed . | . . . Part Schematics Acquired . | . . . Parts Damaged . | . . . Bothacking | -11 -10 -10 ------------ Run | Yrd Mat Min Used RIF Installer . | . . . Robots Hacked . | . . . Non-combat . | . . . Combat . | . . . Robot Hacks Applied . | . . . Relay Couplers Released . | . . . Fabnet Peak Effective % . | . . . Robots Rewired . | . . . Allies Hacked . | . . . Hacks Repelled . | . . . Allies | -11 -10 -10 -------- Run | Yrd Mat Min Total Allies . | . . . Largest Group . | . . . Highest-Rated Group . | . . . Highest-Rated Ally . | . . . Total Orders . | . . . Ally Attacks . | . . . Total Damage . | . . . Kills . | . . . Allies Corrupted . | . . . Allies Melted . | . . . Intel | -11 -10 -10 ------- Run | Yrd Mat Min Robot Analysis Total 1 | . 1 . Derelict Logs Recovered . | . . . Drone Launches . | . . . Drone Recoveries . | . . . Exploration | -11 -10 -10 ------------- Run | Yrd Mat Min Turns Passed 1555 | 103 1182 270 Spaces Moved 815 | 55 641 119 Core 5 | 5 . . Treads . | . . . Legs . | . . . Wheels 810 | 50 641 119 Hover . | . . . Flight . | . . . Fastest Speed 50 | 50 90 135 Average Speed 124 | 86 124 137 Slowest Speed 200 | 100 200 140 Overloaded Moves . | . . . Propulsion Burnouts . | . . . Robots Hopped . | . . . Cave-ins Triggered . | . . . Exploration Rate (%) 35 | 4 77 24 Regions Visited 2 Branch Regions 1 Pre-discovered Areas 2 | . 2 . Known Exits Taken . | . . . Unknown Exits Taken 2 | 1 1 . Scrap Searched . | . . . Spaces Dug . | . . . Terrain Destroyed . | . . . Melee . | . . . Projectile . | . . . AOE . | . . . Terrain Rammed . | . . . Walls Destroyed . | . . . Machines Disabled . | . . . Actions | -11 -10 -10 --------- Run | Yrd Mat Min Total 1207 | 87 917 203 Wait 248 | 7 184 57 Move 813 | 54 640 119 Hop . | . . . Pick Up 30 | 8 19 3 Fast Attach 9 | 7 2 . Attach 9 | . 4 5 Detach 3 | . 3 . Swap 4 | . 4 . Drop 6 | . 5 1 Fire 85 | 11 56 18 Melee . | . . . Ram . | . . . Kick . | . . . Crush . | . . . Escape Stasis . | . . . Rewire . | . . . Trap . | . . . Miscellaneous . | . . . Route ------- -11/Scrapyard -10/Materials (discovered 3 exits: [*Mat] / [*Min x2]) -10/Mines History --------- Turn | Location | Event 12 | -11/Scrapyard | Discovered new exit (range 15) 104 | -11/Scrapyard | Entered Materials 315 | -10/Materials | Build established: Mutant 631 | -10/Materials | Discovered new exit (range 6) 675 | -10/Materials | Discovered new exit (range 16) 1125 | -10/Materials | Core integrity fell below 50% 1155 | -10/Materials | Discovered new exit (range 10) 1286 | -10/Materials | Entered Mines 1287 | -10/Mines | Assembled infested the area 1394 | -10/Mines | Core integrity fell below 20% 1556 | -10/Mines | Destroyed by as-99396 with Assembled Rifle Last Messages --------------- squad. 01287_ K-01 Serf collects debris. 01327_ S-10 Pest destroyed. 01336_ Lgt. Ion Engine destroyed. 01339_ S-10 Pest destroyed. 01341_ Beam Cannon destroyed. 01343_ S-10 Pest destroyed. 01345_ Acquired 10 matter. 01350_ Acquired Lrg. Matter Pod. 01353_ Acquired Com. Matter Pod. 01354_ Dropped Lrg. Matter Pod. 01385_ The unstable cave ceiling collapses. 01400_ Wheel destroyed. 01498_ as-68822 destroyed. 01504_ Acquired 15 matter. 01516_ Acquired Imp. Terrain Scanner. 01527_ The unstable cave ceiling collapses. 01539_ as-23712 destroyed. 01544_ Lgt. Ion Engine destroyed. 01549_ as-32753 destroyed. Map ----- +----------------------------------------------------+ | ??# #####?????## ##?????????????????????????????? | | ??# #?????# ##????????????????????????????? | | ??##### #?????# ##???????????????????????????? | | ??????# #??????# ###?????????????????????????? | | ??????# #??????## ##????????????????????????? | | ??????# #???????# " ##???????????????????????? | | ??????# #??###### ##??????????????????????? | | ??????# #### #??????????????????????? | | ??????# ## #### #?????????????????????? | | ??????### # # # # #?????????????????????? | | ????????# ## ##?????????????????????? | | ????????## ## ####??????????????????????? | | ????????# #%# #####?????????????????????????? | | ????????## # ### #####?##???????????????????????? | | ????????## ## ##??????????????????????? | | ????????# # #??????????????????????? | | ????????## # # #?#????????????????????? | | ?????????## ##? #????????????????????? | | ??????????# % =%## ######???????????????? | | ??????????# % =|%* ?????????????? | | ??????????# = # #????????????????????? | | ??????????###### # # # #????????????????????? | | ???????????????####### ##?????????????????????? | | ?????????????????????## ##??????????????????????? | | ????????????????????###a%###?????????????????????? | | ????????????????????# @ #?????????????????????? | | ???????????????????# #????????????????????? | | ???????????????????# #????????????????????? | | ???????????????????## #???????????????????? | | ????????????????????## #???????????????????? | | ?????????????????????# ##???????????????????? | | ????????????????????? ##????????????????????? | | ???????????????????? ##?????????????????????? | | ??????????????????? * ##??????????????????????? | | ??????????????????? % #???????????????????????? | | ??????????????????%!! ##???????????????????????? | | ?????????????????#=!! ##?????????????????????????? | | ?????????????????#=%##???????????????????????????? | | ??????????????????%=?????????????????????????????? | | ?????????????????????????????????????????????????? | | ?????????????????????????????????????????????????? | | ?????????????????????????????????????????????????? | | ?????????????????????????????????????????????????? | | ?????????????????????????????????????????????????? | | ?????????????????????????????????????????????????? | | ?????????????????????????????????????????????????? | | ?????????????????????????????????????????????????? | | ?????????????????????????????????????????????????? | | ?????????????????????????????????????????????????? | | ?????????????????????????????????????????????????? | +----------------------------------------------------+ Best States ------------- Heat Dissipation 35 Energy Generation 14 Energy Capacity 250 Matter Stores 300 Matter Capacity 300 Sight Range 16 Terrain Scan Density 10 Evasion (%) 42 Targeting Accuracy 5 Item Schematics ----------------- None Robot Schematics ------------------ None Fabricated ------------ Nothing Alien Tech Used ----------------- None Achievements -------------- None Challenges ------------ None Game ------ Seed QuantumWarlordDrivehammer Manual? 0 Play Time 00:15:16 Cumulative 102.6 hours Start 2025.01.06 @ 02:24:31 End 2025.01.07 @ 13:05:40 Sessions 4 Manual Loads 0 Difficulty Rogue Special Mode None Game No. 143 Rogue 138 Adventurer 5 Explorer 0 Win Type - Total 3 Types 2/0/0/1/0/0/0/0/0 Lore% 29 Gallery% 60 Achievement% 51 Wizard Run 0 Options --------- Layout 0 ASCII 0 Keyboard 0 Movement Mouse Keybinds 0 Fullscreen 1 Font 24/Smallcaps Map View 76x50 Zoom Use 6% Tactical HUD 1 Map Filters NONE Filters NONE Steam 1 RUN: c47645f2-dd03-4399-8732-385a4c805650